bitfinex/quotes_SOLUSD_20241016
["timestamp","ask_amount","ask_price","bid_price","bid_amount"]
[1729101696880,6.4387,155.31,155.27,6.4403]
[1729101699274,6.4396,155.29,155.25,6.4411]
[1729101699468,6.4396,155.29,155.24,6.4416]
[1729101700874,30.0,155.3,155.22,6.1318]
[1729101701075,30.0,155.3,155.26,6.4407]
[1729101702012,36.4392,155.3,155.26,6.4407]
[1729101703698,30.0,155.3,155.27,6.4403]
[1729101704073,30.0,155.3,155.28,6.4399]
[1729101704274,6.72573923,155.32,155.29,6.4393]
[1729101704983,6.4376,155.34,155.29,6.4393]
[1729101705181,8.92301933,155.33,155.29,6.4393]
[1729101705381,6.438,155.33,155.29,6.4393]
[1729101705899,6.4402,155.28,155.23,6.4417]
[1729101706078,6.4396,155.29,155.24,6.4412]
[1729101706272,6.4396,155.29,155.22,6.1318]
[1729101706588,6.4396,155.29,155.25,6.4411]
[1729101706982,6.4405,155.27,155.22,6.1318]
[1729101707299,23.776884,155.31,155.22,6.1318]
[1729101707676,23.776884,155.31,155.24,6.4413]
[1729101707677,6.44,155.28,155.24,6.4413]
[1729101708086,6.4396,155.29,155.24,6.4413]
[1729101708597,6.4396,155.29,155.25,6.4411]
[1729101709798,6.4397,155.29,155.25,6.4411]
[1729101710298,6.4392,155.3,155.26,6.4408]
[1729101712379,6.4399,155.29,155.24,6.4415]
[1729101712612,6.4399,155.29,155.22,6.1318]
[1729101712807,6.4399,155.29,155.24,6.4415]
[1729101713388,6.4399,155.29,155.25,6.441]
[1729101715415,23.776884,155.29,155.21,15.8584]
[1729101715707,20.0,155.26,155.17,15.8584]
[1729101715909,23.776884,155.25,155.17,15.8584]
[1729101716591,30.218184,155.25,155.2,6.443]
[1729101717103,30.218184,155.25,155.21,16.1068]
[1729101717302,30.0,155.24,155.21,16.1068]
[1729101717898,30.0,155.24,155.23,6.442]
[1729101718101,23.22340863,155.29,155.25,6.4408]
[1729101718290,30.0,155.26,155.25,6.4408]
[1729101719130,16.78360863,155.29,155.26,6.4406]
[1729101719583,16.78360863,155.29,155.27,6.4403]
[1729101719791,30.0,155.28,155.27,6.4403]
[1729101721709,6.4383,155.33,155.28,6.4396]
[1729101721909,23.776884,155.32,155.28,6.4396]
[1729101722488,23.776884,155.32,155.24,15.8584]
[1729101722489,6.7244553,155.33,155.25,17.93982123]
[1729101722807,6.7244553,155.33,155.31,6.4387]
[1729101723006,10.05363063,155.34,155.31,6.4387]
[1729101724111,10.05363063,155.34,155.32,6.438]
[1729101728391,10.05363063,155.34,155.33,6.4379]
[1729101729493,10.05363063,155.34,155.27,6.2537]
[1729101729702,10.05363063,155.34,155.24,15.8584]
[1729101729703,48.57025502,155.33,155.26,6.4407]
[1729101730016,23.776884,155.31,155.24,15.8584]
[1729101730191,23.776884,155.31,155.27,6.4402]
[1729101730389,4.79514622,155.3,155.27,6.4402]
[1729101730700,30.215584,155.31,155.27,6.4402]
[1729101730904,4.79488636,155.3,155.27,6.4402]
[1729101731208,4.79716639,155.29,155.27,6.4402]
[1729101731514,30.215584,155.31,155.27,6.4402]
[1729101731691,4.79756066,155.3,155.27,6.4402]
[1729101731891,4.79756066,155.29,155.27,6.4402]
[1729101732088,30.215584,155.31,155.27,6.4402]
[1729101732397,4.79786749,155.3,155.27,6.4402]
[1729101732715,4.79786749,155.29,155.27,6.4402]
[1729101732922,36.4385,155.32,155.28,6.4398]
[1729101733133,4.79971372,155.31,155.3,6.4391]
[1729101733417,34.79971372,155.31,155.3,6.4391]
[1729101734416,4.79971372,155.31,155.3,6.4391]
[1729101736925,4.79971372,155.31,155.29,6.4392]
[1729101737102,4.79971372,155.3,155.29,6.4392]
[1729101737505,4.79971372,155.32,155.29,6.4392]
[1729101739252,4.79971372,155.32,155.24,15.8584]
[1729101739414,11.23811372,155.32,155.28,6.4398]
[1729101739613,4.79971372,155.31,155.28,6.4398]
[1729101739812,4.79971372,155.31,155.24,15.8584]
[1729101740013,4.79971372,155.3,155.29,6.4391]
[1729101740211,13.15885296,155.33,155.29,6.4391]
[1729101740422,4.80423276,155.3,155.29,6.4391]
[1729101740596,4.80454096,155.32,155.29,6.4391]
[1729101740800,4.80454096,155.31,155.29,6.4391]
[1729101741014,4.80454096,155.3,155.29,6.4391]
[1729101741212,4.80454096,155.32,155.29,6.4391]
[1729101741421,4.80454096,155.32,155.28,6.4396]
[1729101741622,4.80454096,155.32,155.29,6.4395]
[1729101743235,4.80454096,155.32,155.24,15.8584]
[1729101743434,6.4392,155.3,155.26,6.4404]
[1729101743636,4.80454096,155.29,155.26,6.4404]
[1729101743811,11.24404096,155.29,155.25,6.4408]
[1729101744008,6.4395,155.29,155.25,6.4408]
[1729101744337,4.80428562,155.28,155.25,6.4408]
[1729101744643,4.80428562,155.27,155.25,6.4408]
[1729101744820,4.80428562,155.26,155.25,6.4408]
[1729101745018,4.80428562,155.28,155.25,6.4408]
[1729101745235,4.80428562,155.27,155.25,6.4408]
[1729101745419,4.80428562,155.26,155.25,6.4408]
[1729101745624,4.80428562,155.28,155.25,6.4408]
[1729101745945,4.80428562,155.27,155.2,16.115]
[1729101746123,37.94616859,155.26,155.16,16.115]
[1729101746436,11.24351694,155.25,155.16,16.115]
[1729101746615,4.80231694,155.24,155.16,16.115]
[1729101746810,4.80231694,155.23,155.16,16.115]
[1729101747038,4.80231694,155.22,155.21,6.4428]
[1729101748534,6.4412,155.25,155.21,6.4428]
[1729101748729,4.79939672,155.24,155.21,6.4428]
[1729101748934,4.79939672,155.23,155.21,6.4428]
[1729101749128,6.4412,155.25,155.21,6.4428]
[1729101749338,4.79824414,155.24,155.21,6.4428]
[1729101749637,4.79824414,155.23,155.21,6.4428]
[1729101749821,30.217784,155.26,155.21,6.4428]
[1729101750017,4.79825116,155.25,155.21,6.4428]
[1729101750232,4.79825116,155.24,155.21,6.4428]
[1729101750431,4.79825116,155.23,155.22,6.4424]
[1729101750846,20.0,155.28,155.19,17.93982123]
[1729101751023,4.79764339,155.27,155.24,6.4416]
[1729101751343,30.0,155.25,155.24,6.4416]
[1729101751538,34.79764339,155.25,155.24,6.4416]
[1729101753239,4.79764339,155.25,155.24,6.4416]
[1729101753921,9.66446841,155.27,155.24,6.4416]
[1729101754271,4.79737516,155.26,155.24,6.4416]
[1729101754443,13.16317227,155.28,155.24,6.4416]
[1729101754642,4.79717046,155.27,155.23,16.105]
[1729101754829,4.79717046,155.26,155.25,6.4412]
[1729101755144,4.79717046,155.27,155.25,16.1025]
[1729101755337,4.79717046,155.26,155.25,22.5437]
[1729101756415,4.79717046,155.26,155.25,16.1025]
[1729101756825,4.79717046,155.26,155.19,20.0]
[1729101757037,6.4408,155.26,155.22,6.4424]
[1729101757645,6.4405,155.27,155.22,16.1053]
[1729101757845,4.79636409,155.26,155.23,6.4418]
[1729101758144,6.4405,155.27,155.23,6.4418]
[1729101758344,4.79622316,155.26,155.23,6.4418]
[1729101758522,6.4405,155.27,155.23,6.4418]
[1729101758934,4.79625442,155.26,155.23,6.4418]
[1729101759129,6.4405,155.27,155.23,6.4418]
[1729101759346,4.79584044,155.26,155.23,6.4418]
[1729101759533,6.4405,155.27,155.23,6.4418]
[1729101759843,4.79587674,155.26,155.23,6.4418]
[1729101760043,6.4405,155.27,155.23,6.4418]
[1729101760250,4.7956951,155.26,155.23,6.4418]
[1729101760447,6.4405,155.27,155.23,6.4418]
[1729101760653,4.79604892,155.26,155.23,6.4418]
[1729101760821,6.4405,155.27,155.23,6.4418]
[1729101761023,4.79633462,155.26,155.23,6.4418]
[1729101761221,6.4405,155.27,155.23,6.4418]
[1729101761444,4.79619725,155.26,155.23,6.4418]
[1729101761621,6.72317227,155.28,155.22,16.1053]
[1729101761825,4.7961478,155.27,155.25,6.441]
[1729101762139,6.72317227,155.28,155.25,6.441]
[1729101762349,4.79589918,155.27,155.25,6.441]
[1729101762556,4.79589918,155.26,155.25,6.441]
[1729101762722,4.79589918,155.26,155.24,16.1036]
[1729101762921,9.59245897,155.27,155.24,22.5451]
[1729101763134,4.79580262,155.26,155.24,22.5451]
[1729101763335,13.16317227,155.28,155.24,22.5451]
[1729101763525,4.79651977,155.27,155.24,22.5451]
[1729101763739,4.79651977,155.26,155.24,22.5451]
[1729101763943,13.16317227,155.28,155.24,22.5451]
[1729101764136,4.79655437,155.27,155.24,22.5451]
[1729101764333,4.79655437,155.26,155.24,22.5451]
[1729101764538,13.16317227,155.28,155.24,22.5451]
[1729101764741,4.79600988,155.27,155.24,22.5451]
[1729101765053,4.79600988,155.26,155.24,22.5451]
[1729101765356,13.16317227,155.28,155.24,22.5451]
[1729101765527,4.79568309,155.27,155.24,22.5451]
[1729101765727,4.79568309,155.26,155.24,22.5451]
[1729101765931,6.4408,155.26,155.22,6.4423]
[1729101766340,4.79582549,155.25,155.22,6.4423]
[1729101766541,6.4408,155.26,155.22,6.4423]
[1729101766744,4.79594255,155.25,155.22,6.4423]
[1729101767056,6.4408,155.26,155.22,6.4423]
[1729101767235,6.72317227,155.28,155.2,6.443]
[1729101767236,6.4418,155.24,155.2,6.443]
[1729101768338,41.23783216,155.23,155.19,6.4434]
[1729101768534,36.442,155.23,155.19,6.4434]
[1729101769039,30.0,155.23,155.19,6.4434]
[1729101769745,30.0,155.23,155.2,6.4432]
[1729101773933,4.79868603,155.22,155.2,6.4432]
[1729101774261,30.0,155.23,155.2,6.4432]
[1729101774551,4.79971029,155.22,155.2,6.4432]
[1729101774849,30.0,155.23,155.21,6.4428]
[1729101775043,30.0,155.22,155.21,6.4428]
[1729101775444,6.4413,155.25,155.21,6.4428]
[1729101775655,4.80137046,155.24,155.21,6.4428]
[1729101777938,11.53022747,155.24,155.21,6.4428]
[1729101778256,4.80137046,155.23,155.21,6.4428]
[1729101778459,6.72885701,155.24,155.21,6.4428]
[1729101778661,4.80104384,155.23,155.21,6.4428]
[1729101778954,6.72885701,155.24,155.21,6.4428]
[1729101779144,4.80104083,155.23,155.21,6.4428]
[1729101779345,4.80104083,155.22,155.21,6.4428]
[1729101779761,4.80104083,155.23,155.21,6.4428]
[1729101780052,4.80104083,155.22,155.21,6.4428]
[1729101780256,4.80104083,155.23,155.21,6.4428]
[1729101780443,4.80104083,155.22,155.21,6.4428]
[1729101780967,4.80223042,155.22,155.21,6.4428]
[1729101781438,4.80223042,155.23,155.21,6.4428]
[1729101781645,4.8033816,155.22,155.21,6.4428]
[1729101784033,6.72885701,155.24,155.21,6.4428]
[1729101784236,4.80615861,155.22,155.21,6.4428]
[1729101784454,4.80615861,155.23,155.2,16.108]
[1729101784636,22.0659,155.31,155.21,26.56671791]
[1729101784846,6.72423483,155.27,155.25,6.441]
[1729101785049,34.8083112,155.26,155.25,6.441]
[1729101785640,4.8083112,155.26,155.25,6.441]
[1729101786152,4.8083112,155.29,155.25,6.441]
[1729101786347,4.8083112,155.28,155.25,6.441]
[1729101786531,4.8083112,155.27,155.25,6.441]
[1729101786734,6.4391,155.3,155.25,6.441]
[1729101786735,4.8083112,155.26,155.25,6.4412]
[1729101786929,4.8083112,155.29,155.25,6.4412]
[1729101787251,4.8083112,155.28,155.25,6.4412]
[1729101787451,4.8083112,155.27,155.25,6.4412]
[1729101787648,4.8083112,155.26,155.25,6.4412]
[1729101787850,6.4391,155.3,155.25,6.4412]
[1729101788063,4.81286927,155.26,155.25,6.4412]
[1729101788945,11.25236927,155.29,155.25,6.4412]
[1729101789562,4.81286927,155.28,155.25,6.4412]
[1729101789750,4.81286927,155.27,155.25,6.4412]
[1729101789950,4.81286927,155.26,155.25,6.4412]
[1729101791374,4.81286927,155.26,155.23,6.4419]
[1729101791664,6.4405,155.27,155.23,6.4419]
[1729101792043,6.4405,155.27,155.21,26.56671791]
[1729101792044,4.81821883,155.26,155.24,6.4416]
[1729101792247,4.81821883,155.25,155.24,6.4416]
[1729101798980,4.81821883,155.25,155.24,26.4416]
[1729101799845,4.81783717,155.25,155.24,26.4416]
[1729101803758,4.81783717,155.25,155.24,6.4416]
[1729101804067,4.81783717,155.25,155.24,26.4416]
[1729101804248,6.4389,155.31,155.24,20.0]
[1729101804450,4.81373502,155.3,155.27,6.4403]
[1729101804673,4.81373502,155.29,155.27,6.4403]
[1729101804880,4.81373502,155.28,155.27,6.4403]
[1729101806792,6.4389,155.31,155.27,6.4403]
[1729101806975,4.81309354,155.3,155.27,6.4403]
[1729101807176,4.81309354,155.29,155.27,6.4403]
[1729101807355,4.81309354,155.28,155.27,6.4403]
[1729101807750,6.4389,155.31,155.27,6.4403]
[1729101808478,6.4389,155.31,155.24,20.0]
[1729101808479,6.71953407,155.32,155.24,20.0]
[1729101808679,6.71953407,155.32,155.27,11.48601791]
[1729101808973,4.81264566,155.31,155.28,6.4397]
[1729101809865,4.81264566,155.3,155.27,6.4402]
[1729101810174,4.81264566,155.29,155.27,6.4402]
[1729101810378,4.81264566,155.28,155.27,6.4402]
[1729101813965,4.81264566,155.28,155.27,17.92621791]
[1729101814297,6.4384,155.32,155.28,6.4399]
[1729101814479,4.80931853,155.31,155.28,6.4399]
[1729101814676,4.80931902,155.3,155.28,6.4399]
[1729101814981,4.80936064,155.29,155.28,6.4399]
[1729101815574,13.16131891,155.34,155.3,6.4391]
[1729101816074,6.438,155.33,155.29,6.4394]
[1729101816273,4.80824321,155.32,155.29,6.4394]
[1729101817172,4.80824321,155.32,155.3,6.439]
[1729101820272,4.80827643,155.31,155.3,6.439]
[1729101825373,13.16111891,155.34,155.3,6.439]
[1729101829297,4.80952255,155.33,155.3,6.439]
[1729101829472,4.80952255,155.32,155.3,6.439]
[1729101829670,4.80952255,155.31,155.3,6.439]
[1729101830365,4.80952255,155.33,155.3,6.439]
[1729101830564,4.80952255,155.32,155.3,6.439]
[1729101830775,4.80952255,155.31,155.3,6.439]
[1729101830964,4.80952255,155.33,155.3,6.439]
[1729101831166,4.80952255,155.32,155.3,6.439]
[1729101831367,4.80952255,155.31,155.3,6.439]
[1729101831571,4.80952255,155.33,155.3,6.439]
[1729101831770,4.80952255,155.32,155.3,6.439]
[1729101831975,4.80952255,155.31,155.3,6.439]
[1729101832176,4.80952255,155.33,155.3,6.439]
[1729101832385,4.80952255,155.32,155.3,6.439]
[1729101832688,4.80952255,155.31,155.3,6.439]
[1729101832890,4.80952255,155.33,155.3,6.439]
[1729101833381,14.87777558,155.33,155.3,6.439]
[1729101833573,4.80952255,155.32,155.3,6.439]
[1729101833776,4.80952255,155.33,155.3,6.439]
[1729101833988,4.80952255,155.32,155.3,6.439]
[1729101834189,4.80952255,155.31,155.3,6.439]
[1729101834564,4.8121814,155.31,155.3,6.439]
[1729101837494,4.81333983,155.33,155.3,6.439]
[1729101837680,4.81333983,155.32,155.3,6.439]
[1729101837880,4.81333983,155.31,155.3,6.439]
[1729101845000,4.81333983,155.31,155.3,26.439]
[1729101845179,4.81333983,155.31,155.3,6.439]
[1729101845379,4.81333983,155.31,155.3,26.439]
[1729101847191,4.81333983,155.31,155.3,6.439]
[1729101850782,4.81912527,155.33,155.3,6.439]
[1729101851096,15.8718304,155.32,155.3,6.439]
[1729101851290,4.81912527,155.31,155.3,6.439]
[1729101851492,4.81912527,155.33,155.3,6.439]
[1729101851692,4.81912527,155.32,155.3,6.439]
[1729101851899,4.81912527,155.31,155.3,6.439]
[1729101852085,4.81912527,155.33,155.3,6.439]
[1729101852281,4.81912527,155.32,155.3,6.439]
[1729101852482,4.81912527,155.31,155.3,6.439]
[1729101852901,4.81912527,155.31,155.22,16.1118]
[1729101853102,6.4398,155.29,155.24,6.4413]
[1729101853399,11.25912527,155.28,155.24,6.4413]
[1729101853597,4.81912527,155.27,155.24,6.4413]
[1729101853809,4.81912527,155.26,155.24,6.4413]
[1729101853973,4.81912527,155.25,155.24,6.4413]
[1729101854902,4.81912527,155.25,155.21,20.0]
[1729101855106,20.0,155.29,155.23,6.4419]
[1729101855107,4.81912527,155.24,155.23,6.4419]
[1729101855280,4.81912527,155.24,155.18,27.59781791]
[1729101855601,4.81912527,155.23,155.21,6.4428]
[1729101855800,4.81912527,155.22,155.21,6.4428]
[1729101856898,6.4401,155.28,155.24,6.4415]
[1729101857090,4.81417867,155.27,155.24,6.4415]
[1729101857288,4.81417867,155.26,155.24,6.4415]
[1729101857583,4.81417867,155.25,155.24,6.4415]
[1729101858505,4.81188216,155.25,155.24,6.4415]
[1729101860293,4.81188216,155.25,155.22,22.5475]
[1729101860503,4.81188216,155.24,155.23,6.4419]
[1729101861580,4.81188216,155.24,155.22,16.1054]
[1729101861792,6.4409,155.26,155.22,22.5477]
[1729101862001,4.80815997,155.25,155.23,6.4419]
[1729101862177,6.4403,155.27,155.23,6.4419]
[1729101862378,4.80784477,155.26,155.23,6.4419]
[1729101865990,4.80396571,155.25,155.23,6.4419]
[1729101866191,4.80396571,155.24,155.22,16.1054]
[1729101866393,4.80231879,155.23,155.22,22.5478]
[1729101866697,6.4408,155.26,155.22,22.5478]
[1729101867191,4.80245965,155.25,155.22,22.5478]
[1729101867404,6.4408,155.26,155.22,22.5478]
[1729101867588,34.25245105,155.28,155.22,16.1054]
[1729101867801,23.776884,155.26,155.22,16.1054]
[1729101867994,23.776884,155.26,155.23,6.4419]
[1729101870899,30.0,155.24,155.23,6.4419]
[1729101872716,30.0,155.24,155.23,48.1355]
[1729101872901,10.05543686,155.3,155.28,6.4395]
[1729101873093,30.0,155.29,155.28,6.4395]
[1729101877619,6.723254,155.36,155.28,20.0]
[1729101877827,6.723254,155.36,155.33,6.4376]
[1729101877996,30.0,155.34,155.33,6.4376]
[1729101883135,30.0,155.34,155.32,6.4382]
[1729101883299,30.0,155.34,155.33,6.4379]
[1729101884428,30.0,155.34,155.25,16.6856]
[1729101884736,30.0,155.34,155.31,6.4386]
[1729101884940,30.0,155.34,155.27,11.48601791]
[1729101884941,36.4376,155.34,155.3,6.4391]
[1729101885118,30.0,155.33,155.3,6.4391]
[1729101888109,10.29893911,155.32,155.3,6.4391]
[1729101888313,30.0,155.31,155.3,6.4391]
[1729101888923,30.0,155.31,155.26,20.0]
[1729101889121,30.0,155.31,155.28,6.4398]
[1729101889940,30.0,155.31,155.25,11.48601791]
[1729101890307,30.0,155.31,155.29,6.4394]
[1729101894530,30.0,155.31,155.25,11.48601791]
[1729101894721,30.0,155.31,155.3,6.4391]
[1729101898228,39.89339273,155.31,155.3,6.4391]
[1729101898438,30.0,155.31,155.3,6.4391]
[1729101902517,30.0,155.31,155.25,11.48601791]
[1729101902518,30.0,155.31,155.29,6.4395]
[1729101905745,6.4405,155.27,155.23,6.4419]
[1729101906043,6.4405,155.27,155.22,6.442]
[1729101906239,6.4405,155.27,155.23,6.4419]
[1729101906837,29.884984,155.3,155.23,6.4419]
[1729101906838,30.0,155.26,155.23,6.4419]
[1729101907219,30.0,155.26,155.19,6.6209]
[1729101907426,30.0,155.26,155.24,6.4416]
[1729101912745,30.0,155.26,155.24,6.4414]
[1729101913629,30.0,155.26,155.25,6.4412]
[1729101914249,6.72642477,155.31,155.3,6.4391]
[1729101914446,30.0,155.31,155.3,17.92511791]
[1729101915251,16.77048492,155.38,155.3,27.77411791]
[1729101915551,10.05010585,155.38,155.37,6.4362]
[1729101915742,40.05010585,155.38,155.37,6.4362]
[1729101916528,40.05010585,155.38,155.36,6.4366]
[1729101917942,9.65368086,155.37,155.36,6.4366]
[1729101918244,30.0,155.37,155.36,6.4366]
[1729101918454,10.05010585,155.38,155.36,6.4366]
[1729101919527,10.05010585,155.38,155.37,6.4362]
[1729101924345,40.05010585,155.38,155.37,6.4362]
[1729101925738,10.05010585,155.38,155.37,6.4362]
[1729101925943,10.05010585,155.38,155.32,17.75001791]
[1729101926265,53.776884,155.37,155.3,16.2881]
[1729101926760,53.776884,155.37,155.31,6.4386]
[1729101926968,69.977184,155.37,155.31,6.4386]
[1729101927264,23.776884,155.35,155.31,6.4386]
[1729101927437,23.776884,155.35,155.32,6.438]
[1729101927860,23.776884,155.36,155.33,6.4377]
[1729101928158,4.7993925,155.35,155.33,6.4377]
[1729101928463,30.0,155.34,155.32,6.4382]
[1729101928756,30.0,155.34,155.3,6.4387]
[1729101928929,30.0,155.34,155.31,6.4385]
[1729101934265,30.215084,155.33,155.28,6.4395]
[1729101934453,4.7998452,155.32,155.28,6.4395]
[1729101934662,11.2382452,155.32,155.28,6.4395]
[1729101934967,4.7998452,155.31,155.28,6.4395]
[1729101935366,30.214884,155.33,155.28,6.4395]
[1729101935539,4.8004749,155.32,155.28,6.4395]
[1729101935860,4.8004749,155.31,155.29,6.4395]
[1729101936066,30.214884,155.33,155.29,6.4395]
[1729101936358,30.0,155.3,155.29,6.4395]
[1729101938741,30.214884,155.33,155.29,6.4395]
[1729101939050,4.80036427,155.32,155.29,6.4395]
[1729101939246,4.80036427,155.31,155.29,6.4395]
[1729101939450,30.214884,155.33,155.29,6.4395]
[1729101939649,4.80038358,155.32,155.29,6.4395]
[1729101939972,4.80038358,155.31,155.29,6.4395]
[1729101940265,30.214884,155.33,155.29,6.4395]
[1729101940575,4.80023144,155.32,155.29,6.4395]
[1729101940864,4.80023144,155.31,155.29,6.4395]
[1729101941061,30.214884,155.33,155.29,6.4395]
[1729101941253,4.80026336,155.32,155.29,6.4395]
[1729101941444,4.80026336,155.31,155.29,6.4395]
[1729101941645,30.214884,155.33,155.29,6.4395]
[1729101941875,4.80020522,155.32,155.29,6.4395]
[1729101942062,4.80020522,155.31,155.29,6.4395]
[1729101942245,30.214884,155.33,155.29,6.4395]
[1729101942561,4.80024399,155.32,155.29,6.4395]
[1729101942766,4.80024399,155.31,155.29,6.4395]
[1729101942956,30.214884,155.33,155.29,6.4395]
[1729101943262,4.80018716,155.32,155.29,6.4395]
[1729101943569,4.80018716,155.31,155.29,6.4395]
[1729101943743,30.214884,155.33,155.29,6.4395]
[1729101943943,4.8002314,155.32,155.29,6.4395]
[1729101944150,4.8002314,155.31,155.29,6.4395]
[1729101944349,30.214884,155.33,155.29,6.4395]
[1729101944550,4.80020518,155.32,155.29,6.4395]
[1729101944746,4.80020518,155.31,155.29,6.4395]
[1729101944960,30.214884,155.33,155.29,6.4395]
[1729101945162,4.80022153,155.32,155.29,6.4395]
[1729101945367,4.80022153,155.31,155.29,6.4395]
[1729101945558,30.0,155.3,155.29,6.4395]
[1729101948151,30.0,155.3,155.28,6.4398]
[1729101948551,30.0,155.3,155.29,6.4395]
[1729101951274,30.0,155.3,155.24,6.4928]
[1729101951584,58.57766007,155.29,155.22,16.5337]
[1729101951765,4.80111592,155.28,155.22,16.5337]
[1729101951957,53.776884,155.29,155.22,16.5337]
[1729101952162,4.80109655,155.28,155.22,16.5337]
[1729101952364,6.44,155.28,155.22,16.5337]
[1729101952677,60.216584,155.29,155.25,6.4412]
[1729101952978,30.0,155.27,155.25,6.4412]
[1729101956465,9.80865924,155.26,155.25,6.4412]
[1729101956676,30.0,155.27,155.25,6.4412]
[1729101957584,30.0,155.26,155.21,11.48601791]
[1729101957771,30.0,155.26,155.22,6.4421]
[1729101957772,23.776884,155.25,155.22,6.4421]
[1729101961467,23.776884,155.25,155.23,6.4419]
[1729101963089,34.80207155,155.24,155.21,6.4428]
[1729101963389,23.776884,155.23,155.2,6.4431]
[1729101964161,23.776884,155.23,155.16,6.5092]
[1729101964363,23.776884,155.21,155.18,6.444]
[1729101964790,23.776884,155.21,155.19,6.4437]
[1729101965474,30.0,155.2,155.19,6.4437]
[1729101966898,23.776884,155.22,155.19,6.4437]
[1729101968685,23.776884,155.22,155.2,6.4432]
[1729101968995,30.0,155.21,155.2,6.4432]
[1729101969870,16.4993115,155.25,155.17,18.02741791]
[1729101969871,10.0581115,155.25,155.17,18.02741791]
[1729101970072,6.4416,155.24,155.2,6.4429]
[1729101970375,23.776884,155.23,155.2,6.4429]
[1729101970569,23.776884,155.23,155.14,15.9943]
[1729101970770,23.776884,155.22,155.19,6.4436]
[1729101971074,6.4434,155.2,155.14,15.9943]
[1729101971397,20.0,155.17,155.1,17.019503]
[1729101971580,6.4456,155.15,155.1,7.078503]
[1729101972101,23.776884,155.14,155.1,7.078503]
[1729101972285,23.776884,155.12,155.1,7.078503]
[1729101973200,30.0,155.13,155.1,7.078503]
[1729101973201,39.31185063,155.13,155.1,7.078503]
[1729101973408,30.0,155.13,155.11,6.4466]
[1729101973579,30.0,155.12,155.11,6.4466]
[1729101973992,39.48727471,155.12,155.11,6.4466]
[1729101974291,30.0,155.12,155.11,6.4466]
[1729101974873,39.49001978,155.12,155.11,6.4466]
[1729101975089,30.0,155.12,155.11,6.4466]
[1729101975875,6.72355982,155.15,155.12,6.4462]
[1729101976114,6.72355982,155.15,155.13,6.4461]
[1729101976400,30.0,155.14,155.13,6.4461]
[1729101978396,6.72355982,155.15,155.13,6.4461]
[1729101979775,23.776884,155.16,155.13,6.4461]
[1729101981492,32.7972747,155.16,155.13,6.4461]
[1729101981792,23.776884,155.17,155.14,6.4457]
[1729101981994,30.0,155.15,155.14,6.4457]
[1729101983296,23.776884,155.17,155.14,6.4457]
[1729101984281,9.16947979,155.16,155.14,6.4457]
[1729101984509,23.776884,155.17,155.14,6.4457]
[1729101986391,30.0,155.15,155.1,0.631103]
[1729101986812,30.0,155.15,155.12,6.4463]
[1729101987016,30.0,155.15,155.1,0.631103]
[1729101987017,30.0,155.15,155.13,6.4461]
[1729101987700,39.05689406,155.17,155.13,6.4461]
[1729101987886,30.221384,155.17,155.13,6.4461]
[1729101988296,23.776884,155.17,155.11,11.48601791]
[1729101988497,6.72011845,155.18,155.17,6.4445]
[1729101988897,30.0,155.18,155.17,6.4445]
[1729101989433,6.71973003,155.22,155.18,6.4439]
[1729101989714,23.776884,155.21,155.18,6.4439]
[1729101990988,30.219684,155.21,155.17,6.4444]
[1729101991391,6.4433,155.2,155.16,6.4448]
[1729101991617,30.219884,155.21,155.13,11.48601791]
[1729101991818,30.219884,155.21,155.17,6.4445]
[1729101992017,23.776884,155.21,155.12,15.2854]
[1729101992220,23.776884,155.18,155.16,6.4449]
[1729101992399,23.776884,155.18,155.15,6.4452]
[1729101992921,30.0,155.17,155.15,6.4452]
[1729101993309,30.0,155.17,155.12,15.2854]
[1729101993310,30.0,155.17,155.16,6.4449]
[1729101993491,23.776884,155.21,155.13,11.48601791]